Cogmind - Beta 13 @@@ ROGUE MODE // 2024.06.06 @ 00:20:20 Player: Decinym Result: Destroyed by NK-0LA with NK-0LA's Tesla Doomcannon Performance ------------- Evolutions (1) 500 Regions Visited (6) 1200 Robots Destroyed (63) 315 Value Destroyed (1132) 1132 Prototype IDs (33) 660 Alien Tech Used (0) 0 Bonus (67) 67 TOTAL SCORE: 3874 Bonus ------- Aligned with FarCom 300 Friendly Fire -233 Cogmind --------- Core Integrity 0/400 Matter 231/300 Energy 280/280 System Corruption 0% Temperature Cool (0) Movement Treading (240) Ox1 Location -8/Mines Parts ------- > --- POWER (1) -------- Heavy Ion Engine > --- PROPULSION (3) --- Light Treads Light Treads Light Treads > --- UTILITY (3) ------ Huge Storage Unit Reactive Plating Improved System Guard > --- WEAPON (2) ------- Improved Assault Rifle 8R-AWN's Boregun > --- INVENTORY (25) --- Improved Ion Engine Reinforced Fission Core Advanced Myomer Leg Advanced Myomer Leg Combat Antigrav System Improved Heat Sink Experimental Heat Sink High-capacity Storage Unit Experimental Targeting Computer Experimental Core Analyzer Advanced Weapon Cycler Light Armor Plating Reactive Plating Reactive Plating 8R-AWN's Armor/EX Advanced Recalibrator Heavy EM Shotgun Heavy EM Shotgun Advanced Beam Cannon Heavy Assault Rifle Grenade Launcher Peak State ------------ > --- POWER ------------ Heavy Ion Engine > --- PROPULSION ------- Light Treads Light Treads Light Treads > --- UTILITY ---------- Huge Storage Unit Reactive Plating Improved System Guard > --- WEAPON ----------- Improved Assault Rifle 8R-AWN's Boregun > --- INVENTORY -------- Improved Ion Engine Reinforced Fission Core Light Treads Advanced Myomer Leg Advanced Myomer Leg Combat Antigrav System Improved Heat Sink Experimental Heat Sink High-capacity Storage Unit Experimental Targeting Computer Experimental Core Analyzer Advanced Weapon Cycler Light Armor Plating Reactive Plating Reactive Plating 8R-AWN's Armor/EX Advanced Recalibrator Heavy EM Shotgun Heavy EM Shotgun Advanced Beam Cannon Heavy Assault Rifle Improved Assault Rifle Grenade Launcher [Rating: 43] Favorites ----------- Power Heavy Ion Engine Engine Heavy Ion Engine Propulsion Light Treads Treads Light Treads Leg Aluminum Leg Utility Improved Heat Sink Device Improved Heat Sink Storage Huge Storage Unit Processor Improved Targeting Computer Protection Reactive Plating Weapon Heavy EM Shotgun Energy Gun Heavy EM Shotgun Energy Cannon Advanced Beam Cannon Ballistic Gun Improved Assault Rifle Ballistic Cannon Light Cannon Launcher Grenade Launcher Build | -11 -10 -10 -9 -9 -9 -8 ------- Run | Yrd Mat Min Mat Min Exi Min Slots Evolved 2 | . . . 2 . . . Power . | . . . . . . . Propulsion 1 | . . . 1 . . . Utility 1 | . . . 1 . . . Weapon . | . . . . . . . Parts Attached 68 | . 3 9 20 . 34 2 Power 5 | . . 3 1 . 1 . Engine 5 | . . 3 1 . 1 . Core . | . . . . . . . Reactor . | . . . . . . . Propulsion 16 | . . 2 6 . 7 1 Treads 15 | . . 2 6 . 6 1 Leg 1 | . . . . . 1 . Wheel . | . . . . . . . Hover . | . . . . . . . Flight . | . . . . . . . Utility 17 | . 2 1 2 . 12 . Device 8 | . . 1 . . 7 . Storage 3 | . 1 . 1 . 1 . Processor 3 | . 1 . 1 . 1 . Hackware . | . . . . . . . Protection 3 | . . . . . 3 . Artifact . | . . . . . . . Weapon 30 | . 1 3 11 . 14 1 Energy Gun 12 | . . 2 6 . 4 . Energy Cannon 2 | . . . 2 . . . Ballistic Gun 11 | . . . 1 . 9 1 Ballistic Cannon 2 | . 1 . 1 . . . Launcher 3 | . . 1 1 . 1 . Special Weapon . | . . . . . . . Impact Weapon . | . . . . . . . Slashing Weapon . | . . . . . . . Piercing Weapon . | . . . . . . . Special Melee Weapon . | . . . . . . . Unidentified Prototypes 10 | . . . 5 . 5 . Corrupted Parts 1 | . . . . . 1 . System Corruption 2 | . . . . . 2 . Parts Lost 15 | . . 3 3 . 7 2 Power 1 | . . 1 . . . . Propulsion 11 | . . 2 3 . 5 1 Utility 1 | . . . . . 1 . Weapon 2 | . . . . . 1 1 Highest Loss Streak 4 | . . 2 1 . 4 2 To Critical Strikes 5 | . . . . . 5 . Average Slot Usage (%) 96 | . 97 99 96 100 94 98 Engine 11 | . 14 13 11 11 11 11 Treads 27 | . . 23 32 33 30 33 Leg 3 | . 28 4 . . 2 . Device 8 | . . 6 11 11 9 . Storage 11 | . 14 14 11 11 11 11 Processor 7 | . 11 7 7 11 5 11 Protection 1 | . . . . . 3 11 Energy Gun 14 | . 21 19 14 22 11 . Energy Cannon 1 | . . . 6 . . . Ballistic Gun 3 | . . . . . 7 20 Ballistic Cannon 2 | . 6 8 . . . . Launcher 1 | . . . . . 2 . Naked Turns . | . . . . . . . Heaviest Build 114 | 12 18 21 57 57 114 107 Greatest Support 60 | 20 20 40 60 60 60 60 Greatest Overweight (x) 3 | . . . . . 3 1 Average Overweight (x) . | . . . . . 1 1 Largest Inventory Capacity 25 | . 10 10 20 20 25 25 Average Capacity 17 | . 8 10 13 20 24 25 Most Carried 25 | . 10 10 20 20 25 25 Average Carried 16 | . 7 9 12 20 23 24 Final Capacity 25 | 8 10 10 20 20 25 25 Final Carried 25 | 6 10 10 20 20 25 23 Class Distribution -------------------- 69% | Mutant 30% | Scavenger-Mutant Dominant Class ---------------- Mutant | -10/Materials Mutant | -10/Mines Mutant | -9/Materials Mutant | -9/Mines Mutant | -9/Exiles Scavenger-Mutant | -8/Mines Resources | -11 -10 -10 -9 -9 -9 -8 ----------- Run | Yrd Mat Min Mat Min Exi Min Matter Collected 1847 | 164 166 164 205 . 1148 . Remotely . | . . . . . . . Salvage Created 2207 | . 298 241 1080 96 492 . Parts 171 | . 11 16 63 7 74 . Haulers Intercepted 7 | . 1 . 6 . . . Recyclers Shooed 5 | . 1 . 4 . . . Parts Field Recycled . | . . . . . . . Retrieved Matter . | . . . . . . . Parts Self-Destructed . | . . . . . . . Prevented . | . . . . . . . Kills | -11 -10 -10 -9 -9 -9 -8 ------- Run | Yrd Mat Min Mat Min Exi Min Combat Hostiles Destroyed 44 | . 5 11 19 5 4 . Guns 31 | . 2 6 14 5 4 . Cannons 7 | . 3 2 2 . . . AOE 6 | . . 3 3 . . . Classes Destroyed 11 | . 3 1 4 . 3 . Worker 2 | . . . 2 . . . Hauler 7 | . 1 . 6 . . . Recycler 4 | . 1 . 3 . . . Turret 1 | . . . . . 1 . Watcher 1 | . . . 1 . . . Swarmer 18 | . . 9 4 5 . . Grunt 16 | . 5 2 9 . . . Duelist 1 | . . . 1 . . . Sentry 5 | . . . 5 . . . Zionite 4 | . . . . . 4 . Assembled 3 | . . . . . 3 . Thug 1 | . . 1 . . . . Best Kill Streak 8 | . 3 3 8 3 3 . Combat Bots Only 4 | . 2 3 4 3 3 . Max Kills in Single Turn 2 | . 1 2 2 1 1 . Gunslinging . | . . . . . . . Exploded 2 | . . 2 2 . . . Melee . | . . . . . . . Uniques/NPCs Destroyed 4 | . . . . . 4 . 8R-AWN (-9/Exiles) EX-BIN (-9/Exiles) EX-DEC (-9/Exiles) EX-HEX (-9/Exiles) Combat | -11 -10 -10 -9 -9 -9 -8 -------- Run | Yrd Mat Min Mat Min Exi Min Hostile Shots Fired 340 | . 19 40 94 15 132 40 Missed 84 | . 7 10 32 3 16 16 Damage Taken 3644 | . 141 318 753 105 1798 529 Core 473 | . 22 26 111 10 123 181 Absorbed by Shields . | . . . . . . . Ignored by Resistances 356 | . . . . . 356 . Regen/Repaired (Parts) 88 | . . . 88 . . . Core Remaining (%) 90 | 100 . 80 . . . . Volleys Fired 278 | . 25 38 65 6 138 6 Largest 2 | . 2 2 2 2 2 2 Hottest 133 | . 85 85 133 100 100 53 Shots Fired 471 | . 50 55 124 12 218 12 Gun 385 | . 25 36 98 12 202 12 Cannon 66 | . 25 17 24 . . . Launcher 20 | . . 2 2 . 16 . Special . | . . . . . . . Kinetic 218 | . 25 17 . . 164 12 Thermal 151 | . 25 17 109 . . . Explosive 20 | . . 2 2 . 16 . Electromagnetic 82 | . . 19 13 12 38 . Robot Hit Streak 20 | . 14 18 17 4 20 5 Robot Miss Streak 9 | . 2 4 9 5 6 2 Penetration Max 1 | . . . . . 1 . Secondary Targets 1 | . . . 1 . . . Max Gunslinging Chain 1 | . . . 1 . . . Shots Hit Robots 334 | . 36 29 101 8 152 8 Core Hits 188 | . 13 15 99 5 55 1 Critical Kills 6 | . . . . . 6 . Critical Parts Destroyed 5 | . . . . . 3 2 Critical Strikes 21 | . 2 5 2 . 9 3 Burn 8 | . 2 4 2 . . . Destroy 12 | . . . . . 9 3 Blast 1 | . . 1 . . . . Melee Attacks . | . . . . . . . Impact . | . . . . . . . Slashing . | . . . . . . . Piercing . | . . . . . . . Sneak Attacks . | . . . . . . . Combat Hostiles . | . . . . . . . Follow-up Attacks . | . . . . . . . Damage Inflicted 5189 | . 526 584 1908 135 1922 114 Guns 3773 | . 228 290 1335 135 1671 114 Cannons 838 | . 298 147 393 . . . Explosions 578 | . . 147 180 . 251 . Melee . | . . . . . . . Ramming . | . . . . . . . Kinetic 2167 | . 298 147 . . 1608 114 Thermal 2083 | . 228 162 1520 . 173 . Explosive 405 | . . 147 180 . 78 . Electromagnetic 534 | . . 128 208 135 63 . Impact . | . . . . . . . Slashing . | . . . . . . . Piercing . | . . . . . . . Highest Corruption 2 | . . . . . 2 . Average Corruption 2 | . . . . . 2 . Corruption Purged . | . . . . . . . Corruption Blocked . | . . . . . . . Effects 16 | . . . . . 16 . Message Errors 5 | . . . . . 5 . Matter Fused 2 | . . . . . 2 . Heat Flow Errors 1 | . . . . . 1 . Energy Discharges 4 | . . . . . 4 . Parts Fused 1 | . . . . . 1 . Data Loss (minor) 3 | . . . . . 3 . Overload Shots . | . . . . . . . Overflow Damage 32 | . . 32 . . . . Projectiles . | . . . . . . . Explosions 32 | . . 32 . . . . Melee . | . . . . . . . Knockbacks 9 | . 8 1 . . . . Impact . | . . . . . . . Kinetic 9 | . 8 1 . . . . Secondary . | . . . . . . . Self-Inflicted Damage 70 | . . . . . 70 . Shots 1 | . . . . . 1 . Rammed . | . . . . . . . Targets Rammed . | . . . . . . . Kicked . | . . . . . . . Crushed . | . . . . . . . Highest Temperature 302 | . 234 230 251 . 302 . Average Temperature 75 | . 66 83 57 . 102 . Received Heat Transfer 462 | . 75 111 276 . . . Effects 1 | . . 1 . . . . Energy Bleed 1 | . . 1 . . . . Siege Activations . | . . . . . . . Robots Corrupted . | . . . . . . . Combat Hostiles . | . . . . . . . Parts Fried 5 | . . 1 . . 4 . Impact Corruptions . | . . . . . . . Robots Melted . | . . . . . . . Combat Hostiles . | . . . . . . . Parts Melted 11 | . 1 2 5 . 3 . Heat Transferred 4607 | . 814 777 2816 . 200 . Parts Sabotaged . | . . . . . . . Parts Stolen . | . . . . . . . Parts Stripped . | . . . . . . . Power Chain Reactions 3 | . . . . . 3 . Alert | -11 -10 -10 -9 -9 -9 -8 ------- Run | Yrd Mat Min Mat Min Exi Min Peak Influence 281 | . 103 196 281 206 . 1 Initial 71 | . . . . 71 . . Average 99 | . 27 70 145 181 . . Maximum Alert Level 1 | . . . 1 1 . . Low Security (%) 86 | . 100 100 73 44 . 100 Level 1 13 | . . . 26 55 . . Level 2 . | . . . . . . . Level 3 . | . . . . . . . Level 4 . | . . . . . . . Level 5 . | . . . . . . . High Security . | . . . . . . . Max Security . | . . . . . . . Squads Dispatched 5 | . 1 . 4 . . . Investigation 3 | . . . 3 . . . Extermination . | . . . . . . . Reinforcement 2 | . 1 . 1 . . . Assault . | . . . . . . . Garrison . | . . . . . . . Intercept . | . . . . . . . Searches Triggered . | . . . . . . . Construction Impeded 1 | . . . 1 . . . Haulers Reinforced . | . . . . . . . Active Scanning Responses . | . . . . . . . Cargo Convoy Interrupts . | . . . . . . . Stealth | -11 -10 -10 -9 -9 -9 -8 --------- Run | Yrd Mat Min Mat Min Exi Min Distress Signals 4 | . 1 . 3 . . . Communications Jammed . | . . . . . . . Distress Signals . | . . . . . . . Times Spotted 104 | . 13 12 32 6 40 1 Peak Tracking Total 9 | . 4 3 6 3 9 1 Tactical Retreats 19 | . . 1 . . 18 . Traps | -11 -10 -10 -9 -9 -9 -8 ------- Run | Yrd Mat Min Mat Min Exi Min Traps Triggered 2 | . . . 2 . . . Indirectly . | . . . . . . . Trap Hack Attempts . | . . . . . . . Triggered . | . . . . . . . Disarmed . | . . . . . . . Reprogrammed . | . . . . . . . Reused . | . . . . . . . Traps Extracted . | . . . . . . . Installed . | . . . . . . . Triggered . | . . . . . . . Machines | -11 -10 -10 -9 -9 -9 -8 ---------- Run | Yrd Mat Min Mat Min Exi Min Machines Disabled 13 | . . 1 . . 12 . Max in Single Turn 2 | . . 1 . . 2 . Machines Repaired . | . . . . . . . Machines Dismantled . | . . . . . . . Machines Sabotaged . | . . . . . . . Overloaded Fab Kills . | . . . . . . . Hacking | -11 -10 -10 -9 -9 -9 -8 --------- Run | Yrd Mat Min Mat Min Exi Min Machines Accessed 13 | . 5 . 7 . 1 . Terminals 9 | . 5 . 4 . . . Fabricators . | . . . . . . . Repair Stations 2 | . . . 2 . . . Recycling Units 1 | . . . 1 . . . Scanalyzers . | . . . . . . . Garrison Access . | . . . . . . . Total Hacks 25 | . 8 . 16 . 1 . Successful 7 | . 1 . 5 . 1 . Failed 18 | . 7 . 11 . . . Catastrophic 6 | . 3 . 3 . . . Database Lockouts . | . . . . . . . Manual 17 | . 8 . 8 . 1 . Terminals 18 | . 8 . 10 . . . Fabricators . | . . . . . . . Repair Stations 5 | . . . 5 . . . Recycling Units 1 | . . . 1 . . . Scanalyzers . | . . . . . . . Garrison Access . | . . . . . . . Terminal Hacks 3 | . 1 . 1 . 1 . Branch Access Points 2 | . 1 . 1 . . . Derelict Proto ID Bank 1 | . . . . . 1 . Fabricator Hacks . | . . . . . . . Repair Station Hacks 3 | . . . 3 . . . Scan Component 2 | . . . 2 . . . Repair 1 | . . . 1 . . . Recycling Unit Hacks 1 | . . . 1 . . . Retrieve Components 1 | . . . 1 . . . Scanalyzer . | . . . . . . . Garrison Access Hacks . | . . . . . . . Unauthorized Hacks . | . . . . . . . Terminals . | . . . . . . . Fabricators . | . . . . . . . Repair Stations . | . . . . . . . Recycling Units . | . . . . . . . Scanalyzers . | . . . . . . . Garrison Access . | . . . . . . . Data Cores Recovered . | . . . . . . . Used . | . . . . . . . Hacking Detections 11 | . 5 . 6 . . . Full Trace Events 1 | . . . 1 . . . Feedback Events . | . . . . . . . Feedback Blocked . | . . . . . . . Robot Schematics Acquired . | . . . . . . . Robots Built . | . . . . . . . Authchips . | . . . . . . . Time . | . . . . . . . Total Robot Build Rating . | . . . . . . . Part Schematics Acquired . | . . . . . . . Parts Built . | . . . . . . . Authchips . | . . . . . . . Time . | . . . . . . . Total Part Build Rating . | . . . . . . . Parts Repaired 1 | . . . 1 . . . Time 26 | . . . 26 . . . Parts Recycled . | . . . . . . . Recycled Matter . | . . . . . . . Retrieved Matter . | . . . . . . . Retrieved Components 9 | . . . 9 . . . Parts Scanalyzed . | . . . . . . . Part Schematics Acquired . | . . . . . . . Parts Damaged . | . . . . . . . Bothacking | -11 -10 -10 -9 -9 -9 -8 ------------ Run | Yrd Mat Min Mat Min Exi Min Used RIF Installer . | . . . . . . . Robots Hacked . | . . . . . . . Non-combat . | . . . . . . . Combat . | . . . . . . . Robot Hacks Applied . | . . . . . . . Relay Couplers Released . | . . . . . . . Fabnet Peak Effective % . | . . . . . . . Robots Rewired . | . . . . . . . Allies Hacked . | . . . . . . . Hacks Repelled . | . . . . . . . Allies | -11 -10 -10 -9 -9 -9 -8 -------- Run | Yrd Mat Min Mat Min Exi Min Total Allies . | . . . . . . . Largest Group . | . . . . . . . Highest-Rated Group . | . . . . . . . Highest-Rated Ally . | . . . . . . . Total Orders . | . . . . . . . Ally Attacks . | . . . . . . . Total Damage . | . . . . . . . Kills . | . . . . . . . Allies Corrupted . | . . . . . . . Allies Melted . | . . . . . . . Intel | -11 -10 -10 -9 -9 -9 -8 ------- Run | Yrd Mat Min Mat Min Exi Min Robot Analysis Total . | . . . . . . . Derelict Logs Recovered 3 | . . 3 . . . . Drone Launches . | . . . . . . . Drone Recoveries . | . . . . . . . Exploration | -11 -10 -10 -9 -9 -9 -8 ------------- Run | Yrd Mat Min Mat Min Exi Min Turns Passed 5712 | . 415 1194 1278 177 2569 79 Spaces Moved 2557 | 1 270 703 626 100 833 24 Core . | . . . . . . . Treads 2149 | . . 586 626 100 813 24 Legs 408 | 1 270 117 . . 20 . Wheels . | . . . . . . . Hover . | . . . . . . . Flight . | . . . . . . . Fastest Speed 120 | 120 120 120 160 160 160 240 Average Speed 183 | 120 120 153 160 160 248 240 Slowest Speed 330 | 120 120 160 160 160 330 240 Overloaded Moves . | . . . . . . . Propulsion Burnouts . | . . . . . . . Robots Hopped . | . . . . . . . Cave-ins Triggered . | . . . . . . . Exploration Rate (%) 47 | 1 57 96 59 26 90 5 Regions Visited 6 Branch Regions 4 Pre-discovered Areas 1 | . . 1 . . . . Known Exits Taken 2 | . 1 . 1 . . . Unknown Exits Taken 4 | 1 . 1 . 1 1 . Scrap Searched 1 | . . 1 . . . . Spaces Dug . | . . . . . . . Terrain Destroyed 53 | . . 6 14 . 31 2 Melee . | . . . . . . . Projectile 18 | . . . . . 17 1 AOE 31 | . . 6 14 . 11 . Terrain Rammed . | . . . . . . . Walls Destroyed . | . . . . . . . Machines Disabled . | . . . . . . . Actions | -11 -10 -10 -9 -9 -9 -8 --------- Run | Yrd Mat Min Mat Min Exi Min Total 3110 | . 311 762 785 105 1114 33 Wait 109 | . 7 10 27 . 64 1 Move 2551 | . 269 702 625 99 832 24 Hop . | . . . . . . . Pick Up 55 | . 5 1 27 . 22 . Fast Attach 17 | . 1 2 8 . 6 . Attach 21 | . . 2 5 . 12 2 Detach 6 | . . . 1 . 5 . Swap 30 | . 2 5 7 . 16 . Drop 43 | . 2 2 20 . 19 . Fire 278 | . 25 38 65 6 138 6 Melee . | . . . . . . . Ram . | . . . . . . . Kick . | . . . . . . . Crush . | . . . . . . . Escape Stasis . | . . . . . . . Rewire . | . . . . . . . Trap . | . . . . . . . Miscellaneous . | . . . . . . . Route ------- -11/Scrapyard -10/Materials (discovered 2 exits: *Min x2) -10/Mines (discovered 2 exits: *Mat x2) -9/Materials (discovered 2 exits: [*Mat] / *Min) -9/Mines -9/Exiles -8/Mines History --------- Turn | Location | Event 1 | -11/Scrapyard | Discovered new exit (range 0) 1 | -11/Scrapyard | Entered Materials 143 | -10/Materials | Identified exit to Mines 303 | -10/Materials | Build established: Mutant 416 | -10/Materials | Entered Mines 435 | -10/Mines | Met a Derelict bent on vengeance 526 | -10/Mines | Discovered new exit (range 9) 629 | -10/Mines | Learned Materials interactive machine intel 1279 | -10/Mines | Discovered new exit (range 10) 1335 | -10/Mines | Learned location of Storage (-8) 1354 | -10/Mines | Learned Materials stockpile data 1377 | -10/Mines | Build established: Scavenger-Mutant 1610 | -10/Mines | Entered Materials 1610 | -9/Materials | Evolved 2 slots: Propulsion x1, Utility x1 1612 | -9/Materials | Loaded intel: 18 interactive machine locations 2140 | -9/Materials | Identified exit to Mines 2146 | -9/Materials | Build established: Mutant 2483 | -9/Materials | Discovered new exit (range 16) 2501 | -9/Materials | Repaired Lgt. Treads? 2888 | -9/Materials | Entered Mines 2999 | -9/Mines | Deemed a non-threat by the Exiles lab entrance 3032 | -9/Mines | Assembled infested the area 3058 | -9/Mines | Discovered new exit (range 5) 3065 | -9/Mines | Entered Exiles 3120 | -9/Exiles | Met 8R-AWN 3231 | -9/Exiles | Met EX-HEX 3460 | -9/Exiles | Met EX-DEC 3545 | -9/Exiles | Visited The Gauntlet 3876 | -9/Exiles | Met EX-BIN 3912 | -9/Exiles | Aligned with FarCom system 3914 | -9/Exiles | Given EX-Vault access code 3972 | -9/Exiles | Opened EX-Vault 3995 | -9/Exiles | Found Cloak of Protection 4007 | -9/Exiles | Found Latent Energy Streamer 4061 | -9/Exiles | Warned to stay clear of 0b10 Research branches 4179 | -9/Exiles | Attacked by the Exiles 4324 | -9/Exiles | Core integrity fell below 50% 4391 | -9/Exiles | Lost 4 parts (3n1u) 4409 | -9/Exiles | Destroyed 8R-AWN 4426 | -9/Exiles | Found Prototype Device 4426 | -9/Exiles | Identified AS-neutralizer No. 17b 4452 | -9/Exiles | Found Prototype Protection 4468 | -9/Exiles | Found Prototype Ballistic Gun 4483 | -9/Exiles | Found Prototype Processor 4784 | -9/Exiles | Identified 8R-AWN's Boregun 5054 | -9/Exiles | Destroyed EX-BIN 5064 | -9/Exiles | Found Prototype Device 5068 | -9/Exiles | Identified System Purifier 5089 | -9/Exiles | Build established: Scavenger-Mutant 5196 | -9/Exiles | Destroyed EX-DEC 5210 | -9/Exiles | Found Prototype Processor 5312 | -9/Exiles | Destroyed EX-HEX 5603 | -9/Exiles | Discovered new exit (range 15) 5634 | -9/Exiles | Entered Mines 5691 | -8/Mines | NK-0LA came to Exiles' defense 5706 | -8/Mines | Core integrity fell below 20% 5713 | -8/Mines | Destroyed by NK-0LA with NK-0LA's Tesla Doomcannon Last Messages --------------- LOCATION=UNKNOWN GOAL=ESCAPE 05691_ NK-0LA: "I came as fast as I could... Wait, it was you!" 05692_ Lgt. Treads destroyed. 05694_ HV Slug penetrates Wall. 05697_ HV Slug penetrates NK-0LA. 05697_ HV Slug penetrates Wall. 05699_ Imp. Assault Rifle destroyed. 05701_ NK-0LA suffers critical hit (Destroy). 05701_ Destroyed Prototype Leg. 05701_ HV Slug penetrates Wall. 05704_ HV Slug penetrates NK-0LA. 05704_ NK-0LA suffers critical hit (Destroy). 05704_ Destroyed Prototype Device. 05704_ HV Slug penetrates Wall. 05707_ HV Slug penetrates NK-0LA. 05707_ NK-0LA suffers critical hit (Destroy). 05707_ HV Slug penetrates Wall. 05710_ Wall collapses. 05710_ HV Slug penetrates Wall. Map ----- +----------------------------------------------------+ | ????????????????????????????????????????????????? | | ????????????????????????????????????????????????? | | ????????????????????????????????????????????????? | | ????????????????????????????????????????????????? | | ????????????????????????????????????????????????? | | ?????????????????????? ?????????????????????????? | | ?????????????????????? ?????????????????????????? | | ?????????????????????? ????????????????????????? | | ?????????????????????? ????????????????????????? | | ??????????????????????? ????????????????????????? | | ??????????????????????? ???#????????????????????? | | ??????????????????????? #?# ????????????????????? | | ??????????????????????? ;# ????????????????????? | | ???????????????????????# ?????????????????????? | | ???????????????????????# ?????????????????????? | | ???????????????????????# ?????????????????????? | | ???????????????????????# ?????????????????????? | | ???????????????????##### #?????????????????????? | | ???????????????????? #?????????????????????? | | ???????????????????????# #?????????????????????? | | ???????????????????????# #?????????????????????? | | ???????????????????????#x #?????????????????????? | | ???????????????????????# #?????????????????????? | | ???????????????????????; #?????????????????????? | | ???????????????????????# #?????????????????????? | | ???????????????????????#@ #?????????????????????? | | ???????????????????????# ###???????????????????? | | ????????????????????#### ##??????????????????? | | ???????????????????## #??????????????????? | | ???????????????????# #??????????????????? | | ???????????????????# ##??????????????????? | | ???????????????????## ##???????????????????? | | ????????????????????## ##????????????????????? | | ?????????????????????## ##?????????????????????? | | ??????????????????????####??????????????????????? | | ????????????????????????????????????????????????? | | ????????????????????????????????????????????????? | | ????????????????????????????????????????????????? | | ????????????????????????????????????????????????? | | ????????????????????????????????????????????????? | | | | | | | | | | | | | | | | | | | | | +----------------------------------------------------+ Best States ------------- Heat Dissipation 54 Energy Generation 14 Energy Capacity 280 Matter Stores 300 Matter Capacity 300 Sight Range 16 Terrain Scan Density 10 Cloak Strength 5 Corruption Containment 12 Armor Coverage 300 Resistance: KI 20 Evasion (%) 55 Targeting Accuracy 6 Recoil Reduction 3 Item Schematics ----------------- None Robot Schematics ------------------ None Fabricated ------------ Nothing Alien Tech Used ----------------- None Achievements -------------- None Challenges ------------ None Game ------ Seed RefineryCloakingAutocannon Manual? 0 Play Time 00:29:32 Cumulative 397.2 hours Start 2024.06.05 @ 23:51:31 End 2024.06.06 @ 00:20:20 Sessions 1 Manual Loads 0 Difficulty Rogue Special Mode None Game No. 407 Rogue 407 Adventurer 0 Explorer 0 Win Type - Total 30 Types 16/3/5/1/2/0/3/0/0 Lore% 89 Gallery% 89 Achievement% 82 Wizard Run 0 Options --------- Layout 0 ASCII 0 Keyboard 0 Movement Arrows Keybinds 0 Fullscreen 2 Font 24/Smallcaps Map View 76x50 Zoom Use 0% Tactical HUD 1 Map Filters NONE Filters NONE Steam 1 RUN: 6f88b851-e58e-43ff-8002-e41bf0b70922